bitfinex-derivatives/quotes_SOLF0:USTF0_20250206
["timestamp","ask_amount","ask_price","bid_price","bid_amount"]
[1738814966461,8.6023006,200.56,200.5,8.6023006]
[1738814966658,13.5881006,200.56,200.51,4.987]
[1738814975569,13.5886006,200.54,200.49,0.03341765]
[1738814975766,13.5886006,200.54,200.48,13.5898006]
[1738814975967,13.5886006,200.54,200.49,0.03725301]
[1738814977069,13.5886006,200.54,200.49,5.02465301]
[1738814977368,8.6023006,200.58,200.5,8.6023006]
[1738814977771,8.6023006,200.58,200.52,0.03741311]
[1738814978768,13.5878006,200.58,200.52,5.02391311]
[1738814979066,8.6023006,200.62,200.54,8.6023006]
[1738814979269,8.6023006,200.62,200.56,8.6023006]
[1738814979469,8.6023006,200.64,200.58,4.985]
[1738814979664,8.6023006,200.64,200.56,8.6023006]
[1738814979870,8.6023006,200.64,200.59,0.03635071]
[1738814980871,13.5861006,200.64,200.59,5.02125071]
[1738814981269,8.6023006,200.64,200.59,5.02125071]
[1738814981471,13.5861006,200.64,200.59,0.03635071]
[1738814983373,8.6023006,200.62,200.59,0.03635071]
[1738814985272,4.9847,200.61,200.59,0.03635071]
[1738814985474,8.6023006,200.6,200.59,0.03635071]
[1738814986173,13.5870006,200.6,200.59,0.03635071]
[1738814993380,8.6023006,200.6,200.48,10.0951006]
[1738814993577,8.6023006,200.55,200.48,10.0951006]
[1738814994576,0.03550799,200.54,200.49,0.03218757]
[1738814994772,5.02170799,200.54,200.49,0.03218757]
[1738814997478,0.03550799,200.54,200.49,0.03218757]
[1738814997778,8.6023006,200.53,200.49,0.03218757]
[1738814998785,4.987,200.51,200.49,0.03218757]
[1738814998986,8.6023006,200.51,200.49,0.03218757]
[1738814999386,4.9872,200.5,200.49,0.03218757]
[1738815006983,8.6023006,200.51,200.4,68.41209848]
[1738815007187,8.6023006,200.44,200.4,6.87192403]
[1738815007785,8.6023006,200.42,200.4,6.87192403]
[1738815008586,4.9895,200.41,200.4,6.87192403]
[1738815010391,4.9897,200.4,200.39,0.03481589]
[1738815010593,13.5920006,200.4,200.39,0.03481589]
[1738815013596,8.6023006,200.42,200.39,0.03481589]
[1738815014386,8.6023006,200.4,200.39,0.03481589]
[1738815014795,13.5920006,200.4,200.39,0.03481589]
[1738815017095,8.6023006,200.4,200.39,0.03481589]
[1738815017402,8.6023006,200.42,200.39,0.03481589]
[1738815017803,8.6023006,200.4,200.39,0.03481589]
[1738815019903,13.5920006,200.4,200.39,0.03481589]
[1738815021205,4.9905,200.37,200.3,13.5943006]
[1738815022302,8.6023006,200.38,200.3,13.5943006]
[1738815022501,8.6023006,200.32,200.31,0.03712883]
[1738815022699,8.6023006,200.32,200.28,1.5173]
[1738815022903,8.6023006,200.32,200.29,0.0314528]
[1738815023302,8.6023006,200.3,200.29,0.0314528]
[1738815023705,13.5945006,200.3,200.29,0.0314528]
[1738815025305,8.6023006,200.3,200.24,6.87192403]
[1738815025504,0.03482587,200.34,200.24,6.87192403]
[1738815025505,13.5958006,200.25,200.24,6.87192403]
[1738815026101,8.6023006,200.25,200.24,6.87192403]
[1738815027107,8.63578378,200.27,200.24,6.87192403]
[1738815027607,8.6023006,200.25,200.22,0.03144195]
[1738815029203,8.63578378,200.27,200.22,0.03144195]
[1738815029504,0.03348318,200.27,200.25,8.6023006]
[1738815029709,8.6023006,200.34,200.26,1.5205]
[1738815030009,8.6023006,200.34,200.28,8.6023006]
[1738815030812,0.03761471,200.33,200.29,5.02876392]
[1738815031812,0.03761471,200.33,200.3,4.9922]
[1738815032112,0.03761471,200.33,200.3,8.6023006]
[1738815033811,0.03761471,200.33,200.32,4.9917]
[1738815034012,8.6023006,200.38,200.32,8.6023006]
[1738815034507,8.6023006,200.4,200.35,4.9909]
[1738815034712,8.6023006,200.4,200.32,8.6023006]
[1738815035213,0.03564626,200.38,200.34,0.03207142]
[1738815035413,0.03564626,200.38,200.34,8.63437202]
[1738815035713,0.03564626,200.38,200.36,4.9907]
[1738815037308,0.03564626,200.38,200.37,4.9905]
[1738815037512,8.6023006,200.42,200.36,8.6023006]
[1738815037715,8.6023006,200.45,200.36,8.6023006]
[1738815037910,8.6023006,200.45,200.4,4.9897]
[1738815038212,8.6023006,200.47,200.4,8.6023006]
[1738815038720,0.03416276,200.46,200.45,4.9884]
[1738815038915,0.03416276,200.46,200.41,0.03302891]
[1738815039323,0.03416276,200.46,200.41,5.02232891]
[1738815040121,0.03416276,200.46,200.44,8.6023006]
[1738815040818,0.03416276,200.46,200.41,13.46295318]
[1738815041724,0.03416276,200.46,200.45,4.9885]
[1738815042719,13.42992427,200.54,200.45,4.9885]
[1738815042920,13.42992427,200.57,200.46,3.0223]
[1738815044025,13.42992427,200.57,200.49,0.03607707]
[1738815044721,4.9861,200.55,200.49,0.03607707]
[1738815045824,4.9861,200.55,200.49,5.02357707]
[1738815046119,13.42992427,200.6,200.49,0.03607707]
[1738815046321,13.42992427,200.6,200.53,4.9864]
[1738815046516,14.94442427,200.63,200.47,16.94992427]
[1738815046721,4.9853,200.58,200.54,0.03221978]
[1738815049029,13.42992427,200.6,200.54,0.03221978]
[1738815050125,4.9854,200.58,200.54,0.03221978]
[1738815050928,13.42992427,200.6,200.54,0.03221978]
[1738815051132,4.9855,200.57,200.54,0.03221978]
[1738815051529,4.9859,200.56,200.54,0.03221978]
[1738815051732,13.42992427,200.57,200.54,0.03221978]
[1738815052730,4.986,200.55,200.54,0.03221978]
[1738815054133,13.42992427,200.6,200.54,0.03221978]
[1738815055931,4.9855,200.58,200.54,0.03221978]
[1738815057431,4.9851,200.59,200.54,0.03221978]
[1738815058136,13.42992427,200.63,200.54,0.03221978]
[1738815059035,4.9839,200.64,200.57,4.9855]
[1738815059232,14.97182427,200.66,200.54,1.4796]
[1738815059436,4.9832,200.67,200.58,0.03402132]
[1738815060034,13.42992427,200.69,200.58,0.03402132]
[1738815060234,4.9835,200.66,200.59,4.985]
[1738815060733,4.9835,200.65,200.59,4.985]
[1738815061738,4.9835,200.65,200.58,5.01922132]
[1738815062235,13.42992427,200.66,200.58,0.03402132]
[1738815062435,13.42992427,200.66,200.56,4.9856]
[1738815062636,4.9837,200.65,200.6,0.03368517]
[1738815062835,13.42992427,200.66,200.6,0.03368517]
[1738815063737,4.984,200.64,200.6,0.03368517]
[1738815064239,13.42992427,200.66,200.6,0.03368517]
[1738815065639,4.9845,200.61,200.6,0.03368517]
[1738815067242,13.42992427,200.63,200.6,0.03368517]
[1738815067540,13.42992427,200.66,200.6,0.03368517]
[1738815068542,4.9845,200.61,200.6,0.03368517]
[1738815068739,13.42992427,200.66,200.6,0.03368517]
[1738815069541,4.9845,200.61,200.6,0.03368517]
[1738815076651,13.57293718,200.61,200.6,0.03368517]
[1738815079453,4.9845,200.61,200.6,0.03368517]
[1738815081953,13.57293718,200.61,200.6,0.03368517]
[1738815084053,8.58843718,200.61,200.49,10.06013718]
[1738815084253,8.58843718,200.55,200.49,1.4717]
[1738815084453,4.9865,200.53,200.48,56.33259788]
[1738815085351,4.9865,200.53,200.49,0.03401556]
[1738815088254,0.03368517,200.54,200.49,0.03401556]
[1738815088458,4.9872,200.5,200.49,0.03401556]
[1738815094054,1.5197,200.53,200.49,0.03401556]
[1738815094358,13.4607657,200.54,200.49,0.03401556]
[1738815095561,4.9872,200.51,200.49,0.03401556]
[1738815097559,13.4607657,200.54,200.49,0.03401556]
[1738815097758,4.9872,200.5,200.49,0.03401556]
[1738815106863,13.5850908,200.5,200.49,0.03401556]
[1738815110367,13.5850908,200.5,200.38,13.1515908]
[1738815110368,4.989,200.43,200.38,13.1515908]
[1738815110568,8.5978908,200.45,200.38,4.5537]
[1738815110768,8.5978908,200.45,200.38,13.1515908]
[1738815110963,4.9887,200.44,200.38,18.1417908]
[1738815111561,0.032817,200.43,200.39,0.03664872]
[1738815111967,0.032817,200.43,200.4,13.5875908]
[1738815115168,0.032817,200.43,200.39,0.03664872]
[1738815115870,5.021817,200.43,200.39,0.03664872]
[1738815118679,0.032817,200.43,200.39,0.03664872]
[1738815119076,8.6307078,200.43,200.39,0.03664872]
[1738815119274,4.9897,200.4,200.39,0.03664872]
[1738815130885,8.6307078,200.43,200.39,0.03664872]
[1738815131091,0.032817,200.43,200.39,0.03664872]
[1738815131883,5.021817,200.43,200.39,0.03664872]
[1738815132186,0.032817,200.43,200.39,0.03664872]
[1738815133487,0.032817,200.43,200.39,5.02664872]
[1738815134586,0.032817,200.43,200.39,6.61044872]
[1738815134993,0.032817,200.43,200.4,4.9896]
[1738815136795,0.032817,200.43,200.4,6.5965]
[1738815136991,8.5978908,200.47,200.4,6.5965]
[1738815137193,4.9864,200.54,200.46,8.5978908]
[1738815137594,8.5978908,200.55,200.48,8.5978908]
[1738815138196,0.03488373,200.54,200.49,0.03740322]
[1738815138495,8.5978908,200.53,200.49,0.03740322]
[1738815139094,0.03488373,200.54,200.49,0.03740322]
[1738815139686,0.03488373,200.54,200.5,8.5978908]
[1738815140497,0.03488373,200.54,200.51,4.9869]
[1738815141094,0.03488373,200.54,200.52,8.5978908]
[1738815141798,8.5978908,200.59,200.52,8.5978908]
[1738815142695,8.5978908,200.63,200.54,8.5978908]
[1738815142898,8.5978908,200.63,200.55,1.5234]
[1738815143091,8.5978908,200.63,200.56,0.03546137]
[1738815146300,8.5978908,200.63,200.56,5.02116137]
[1738815146491,13.5819908,200.63,200.56,5.02116137]
[1738815146795,8.5978908,200.63,200.56,8.63335217]
[1738815146998,8.5978908,200.63,200.56,10.11465217]
[1738815147198,8.5978908,200.63,200.57,4.9854]
[1738815149004,8.5978908,200.63,200.58,4.9852]
[1738815149198,8.5978908,200.65,200.58,8.5978908]
[1738815149597,13.5810908,200.67,200.6,8.5978908]
[1738815150093,13.5810908,200.67,200.61,0.03315839]
[1738815150597,4.9834,200.66,200.61,0.03315839]
[1738815154903,1.467,200.73,200.61,0.03315839]
[1738815154904,8.5978908,200.71,200.64,8.5978908]
[1738815155104,8.5978908,200.75,200.66,8.5978908]
[1738815155308,8.5978908,200.75,200.68,8.5978908]
[1738815155808,8.5978908,200.77,200.7,8.5978908]
[1738815156210,8.5978908,200.81,200.72,8.5978908]
[1738815156409,4.9797,200.81,200.74,8.5978908]
[1738815156708,8.5978908,200.83,200.75,0.03300957]
[1738815156906,8.5978908,200.83,200.76,8.5978908]
[1738815157104,8.5978908,200.85,200.76,8.5978908]
[1738815157306,8.5978908,200.85,200.78,8.5978908]
[1738815157505,8.5978908,200.85,200.78,8.63160976]
[1738815158612,13.38930817,200.86,200.78,0.03371896]
[1738815158908,13.38930817,200.86,200.76,3.1148]
[1738815159109,4.9787,200.85,200.8,0.03367047]
[1738815159511,13.38930817,200.89,200.8,0.03367047]
[1738815159705,18.36700817,200.89,200.8,5.01337047]
[1738815159907,13.38930817,200.89,200.76,4.6094]
[1738815160103,13.38930817,200.89,200.82,0.03398785]
[1738815160810,4.9781,200.87,200.82,0.03398785]
[1738815161711,4.9784,200.86,200.82,0.03398785]
[1738815162712,4.978,200.88,200.82,0.03398785]
[1738815164509,4.978,200.88,200.82,5.01318785]
[1738815165211,13.38930817,200.92,200.82,0.03398785]
[1738815165212,4.978,200.87,200.82,0.03398785]
[1738815165416,13.38930817,200.92,200.82,0.03398785]
[1738815165814,4.9775,200.89,200.82,0.03398785]
[1738815166014,13.38930817,200.92,200.82,0.03398785]
[1738815166214,3.0592,200.94,200.82,0.03398785]
[1738815166817,4.9772,200.91,200.84,4.9788]
[1738815167017,3.0592,200.94,200.84,4.9788]
[1738815167217,3.0592,200.94,200.85,0.03822653]
[1738815169120,13.38930817,200.92,200.85,0.03822653]
[1738815170118,4.9773,200.9,200.85,0.03822653]
[1738815170320,13.38930817,200.92,200.85,0.03822653]
[1738815170919,4.9783,200.86,200.85,0.03822653]
[1738815176026,4.9785,200.86,200.76,4.6094]
[1738815176228,13.38930817,200.86,200.76,4.6094]
[1738815176526,4.9786,200.85,200.76,4.6094]
[1738815176828,13.38930817,200.89,200.76,4.6094]
[1738815177229,0.03564065,200.85,200.8,0.03462898]
[1738815178832,0.03564065,200.85,200.8,13.57956597]
[1738815179130,0.03564065,200.85,200.8,8.59986597]
[1738815179629,5.01424065,200.85,200.8,8.59986597]
[1738815181031,0.03564065,200.85,200.8,8.59986597]
[1738815181328,4.9789,200.84,200.8,8.59986597]
[1738815182231,4.9793,200.83,200.8,8.59986597]
[1738815182429,0.03564065,200.85,200.8,8.59986597]
[1738815183122,4.9791,200.83,200.8,8.59986597]
[1738815183327,0.03564065,200.85,200.8,8.59986597]
[1738815183529,0.03564065,200.85,200.84,8.56523699]
[1738815183729,4.9773,200.9,200.84,8.56523699]
[1738815183932,4.9773,200.9,200.87,8.56523699]
[1738815187030,4.9776,200.89,200.86,0.03549596]
[1738815187329,8.56523699,200.89,200.86,0.03549596]
[1738815188732,4.978,200.87,200.86,0.03549596]
[1738815200354,4.9796,200.81,200.77,8.56523699]
[1738815201654,5.01524626,200.81,200.77,8.60080205]
[1738815202355,4.9799,200.8,200.77,8.60080205]
[1738815207159,0.03564626,200.81,200.79,8.56523699]
[1738815208161,8.56523699,200.92,200.81,4.9795]
[1738815208460,8.56523699,200.92,200.84,8.56523699]
[1738815209150,4.9774,200.9,200.84,8.56523699]
[1738815209356,8.56523699,200.96,200.88,8.56523699]
[1738815209552,8.56523699,200.96,200.9,8.56523699]
[1738815209752,8.56523699,200.96,200.91,0.03177527]
[1738815210255,8.56523699,200.98,200.91,0.03177527]
[1738815210862,4.976,200.96,200.91,0.03177527]
[1738815211260,55.17299845,201.02,200.91,0.03177527]
[1738815211261,8.56523699,201.0,200.94,8.56523699]
[1738815211659,63.73823544,201.02,200.95,0.03250473]
[1738815211856,68.71273544,201.02,200.95,0.03250473]
[1738815212068,63.73823544,201.02,200.95,0.03250473]
[1738815212258,8.56523699,201.04,200.96,8.56523699]
[1738815212460,10.09413699,201.06,200.98,8.56523699]
[1738815212765,4.9737,201.05,200.98,8.56523699]
[1738815213064,4.9739,201.04,201.0,0.03524113]
[1738815215163,55.17299845,201.07,201.0,0.03524113]
[1738815215656,13.35817711,201.1,201.0,0.03524113]
[1738815216267,4.9743,201.02,201.0,0.03524113]
[1738815216461,13.35817711,201.1,201.0,0.03524113]
[1738815217763,4.9741,201.03,201.0,0.03524113]
[1738815219771,13.35817711,201.1,201.0,0.03524113]
[1738815220269,13.35817711,201.07,201.0,0.03524113]
[1738815220466,4.9746,201.01,201.0,0.03524113]
[1738815221068,4.9746,201.01,201.0,4.113e-05]
[1738815222073,18.33277711,201.01,201.0,4.113e-05]
[1738815222371,13.35817711,201.01,200.9,1.4952]
[1738815222869,13.35817711,200.98,200.9,1.4952]
[1738815223569,0.03704422,200.96,200.9,1.4952]
[1738815223871,4.9767,200.93,200.92,0.03665451]
[1738815238091,13.53419826,200.93,200.92,0.03665451]
[1738815240595,4.9767,200.93,200.92,0.03665451]
[1738815241092,0.03704422,200.96,200.92,0.03665451]
[1738815242494,4.9764,200.94,200.92,0.03665451]
[1738815245896,0.03704422,200.96,200.93,8.55749826]
[1738815246095,0.03704422,200.96,200.95,8.55749826]
[1738815246498,4.9748,201.0,200.95,8.55749826]
[1738815246687,4.9748,201.0,200.98,8.55749826]
[1738815246888,8.55749826,201.05,200.98,8.55749826]
[1738815247195,8.55749826,201.03,200.96,8.55749826]
[1738815247694,4.9754,200.98,200.97,0.03668533]
[1738815247890,4.9754,200.98,200.94,8.55749826]
[1738815248090,4.9754,200.98,200.95,0.03153754]
[1738815249698,4.9757,200.97,200.95,0.03153754]
[1738815249896,4.9757,200.97,200.94,8.55749826]
[1738815252894,4.9757,200.97,200.93,3.1773633]
[1738815253099,8.55749826,200.99,200.93,1.5802633]
[1738815253297,8.55749826,200.99,200.93,1.5482]
[1738815253598,13.53359826,200.95,200.94,4.968e-05]
[1738815253797,8.55749826,200.95,200.86,3.1426]
[1738815253998,8.55749826,200.92,200.86,3.1426]
[1738815254196,4.9775,200.9,200.86,6.87192403]
[1738815254594,13.3753742,200.97,200.86,6.87192403]
[1738815254901,0.03449203,200.9,200.86,6.90560981]
[1738815256799,4.9777,200.89,200.86,6.90560981]
[1738815257301,4.9777,200.89,200.86,0.03368578]
[1738815260199,4.9778,200.88,200.86,0.03368578]
[1738815262507,5.01179203,200.9,200.86,0.03368578]
[1738815263507,4.9776,200.89,200.86,0.03368578]
[1738815264498,0.03449203,200.9,200.86,0.03368578]
[1738815265809,5.01189203,200.9,200.86,0.03368578]
[1738815268310,0.03449203,200.9,200.86,0.03368578]
[1738815269703,5.01199203,200.9,200.86,0.03368578]
[1738815272214,0.03449203,200.9,200.88,4.9777]
[1738815273416,0.03449203,200.9,200.87,4.978]
[1738815276621,0.03449203,200.9,200.89,8.55737817]
[1738815286622,0.03449203,200.9,200.89,13.53487817]
[1738815291025,4.3032,201.01,200.89,8.55737817]
[1738815291026,4.9754,200.98,200.89,8.55737817]
[1738815291324,4.9754,200.98,200.86,6.90560981]
[1738815291325,4.9754,200.98,200.96,8.55737817]
[1738815291719,3.2132,201.01,200.96,8.55737817]
[1738815291920,4.9751,200.99,200.96,8.55737817]
[1738815292122,4.9751,200.99,200.96,8.59230816]
[1738815293124,4.9746,201.01,200.96,8.59230816]
[1738815293326,4.9746,201.01,200.98,8.55737817]
[1738815293526,8.55737817,201.05,200.98,8.55737817]
[1738815295930,4.9741,201.03,200.98,8.55737817]
[1738815296825,4.9741,201.03,200.98,13.53267817]
[1738815297429,4.9741,201.03,200.98,8.55737817]
[1738815299936,4.9741,201.03,200.98,13.53267817]
[1738815300230,4.9739,201.04,200.98,8.55737817]
[1738815300633,4.9741,201.03,200.98,13.53267817]
[1738815301132,8.55737817,201.07,201.0,8.55737817]
[1738815301335,13.53057817,201.07,201.02,4.9743]
[1738815301535,8.55737817,201.07,201.01,0.03493667]
[1738815302035,8.55737817,201.05,201.01,0.03493667]
[1738815302235,8.55737817,201.03,201.01,0.03493667]
[1738815302532,8.55737817,201.05,201.01,0.03493667]
[1738815303037,4.9743,201.02,201.01,0.03493667]
[1738815304829,4.9756,200.97,200.92,8.55737817]
[1738815306134,5.01322316,200.97,200.92,8.59431272]
[1738815306334,0.03762316,200.97,200.94,8.55737817]
[1738815308947,0.03762316,200.97,200.96,8.55737817]
[1738815309245,0.03762316,200.97,200.96,13.53317817]
[1738815310247,4.9738,201.04,200.96,8.55737817]
[1738815310446,4.9738,201.04,201.0,8.55737817]
[1738815311547,4.9738,201.04,201.0,8.59460488]
[1738815311739,8.55737817,201.09,201.02,8.55737817]
[1738815312042,8.55737817,201.11,201.02,8.55737817]
[1738815312245,8.55737817,201.09,201.03,0.03656393]
[1738815312444,8.55737817,201.07,201.03,0.03656393]
[1738815312747,4.9734,201.06,201.03,0.03656393]
[1738815312936,8.55737817,201.07,201.03,0.03656393]
[1738815313549,4.9738,201.05,201.03,0.03656393]
[1738815313846,8.55737817,201.09,201.03,0.03656393]
[1738815314248,13.52967817,201.11,201.04,8.55737817]
[1738815315551,8.55737817,201.11,201.04,8.55737817]
[1738815315745,8.55737817,201.11,201.05,4.9735]
[1738815316646,13.52947817,201.11,201.04,8.55737817]
[1738815317150,8.55737817,201.11,201.04,8.55737817]
[1738815317350,4.9724,201.1,201.04,8.55737817]
[1738815317752,8.55737817,201.11,201.04,8.55737817]
[1738815317953,4.9726,201.09,201.04,8.55737817]
[1738815318250,8.55737817,201.11,201.05,4.9735]
[1738815319354,8.55737817,201.15,201.08,8.55737817]
[1738815319757,4.9711,201.15,201.1,8.55737817]
[1738815320049,8.55737817,201.17,201.1,8.55737817]
[1738815321851,4.9714,201.14,201.1,8.55737817]
[1738815322153,8.55737817,201.14,201.09,0.03162452]
[1738815322656,4.9723,201.1,201.09,0.03162452]
[1738815323353,13.52967817,201.1,201.09,0.03162452]
[1738815326554,4.9723,201.1,201.09,0.03162452]
[1738815329449,13.52967817,201.1,201.09,0.03162452]
[1738815330551,4.9736,201.05,201.02,8.55737817]
[1738815330754,4.9736,201.05,201.0,11.54857817]
[1738815331553,4.9736,201.05,201.0,11.5819182]
[1738815331862,4.9745,201.02,201.0,0.03334003]
[1738815332354,13.53187817,201.02,201.0,0.03334003]
[1738815333748,13.53187817,201.02,201.0,4.003e-05]
[1738815336059,8.55737817,201.02,201.0,4.003e-05]
[1738815336260,4.9746,201.01,201.0,4.003e-05]
[1738815336957,8.55737817,201.02,200.9,8.55737817]
[1738815337157,4.9763,200.94,200.9,8.55737817]
[1738815337458,4.9763,200.94,200.89,1.5105]
[1738815337661,8.55737817,200.96,200.89,1.5105]
[1738815338251,0.03533352,200.95,200.9,8.59144883]
[1738815338660,0.03533352,200.95,200.9,8.55737817]
[1738815338862,0.03533352,200.95,200.9,8.58963517]
[1738815340266,0.03533352,200.95,200.92,8.55737817]
[1738815341663,0.03533352,200.95,200.9,0.032257]
[1738815342667,4.9769,200.92,200.9,0.032257]
[1738815342861,8.55737817,200.94,200.9,0.032257]
[1738815343361,8.55737817,200.92,200.9,0.032257]
[1738815344362,4.9771,200.91,200.9,0.032257]
[1738815349766,8.55737817,200.92,200.83,1.5595]
[1738815349970,4.9788,200.84,200.83,1.5595]
[1738815350569,13.53587817,200.86,200.83,1.5595]
[1738815350871,8.55737817,200.88,200.83,1.5595]
[1738815351171,0.03367794,200.87,200.83,1.5595]
[1738815351364,5.01177794,200.87,200.83,1.5595]
[1738815352367,0.03367794,200.87,200.83,1.5595]
[1738815353468,5.01177794,200.87,200.83,1.5595]
[1738815353663,0.03367794,200.87,200.83,1.5595]
[1738815354474,4.9788,200.84,200.82,0.03213189]
[1738815356274,0.03367794,200.87,200.82,0.03213189]
[1738815356472,4.9786,200.85,200.82,0.03213189]
[1738815356970,4.9783,200.86,200.82,8.58951006]
[1738815358778,0.03367794,200.87,200.84,13.53587817]
[1738815359078,0.03367794,200.87,200.86,8.55737817]
[1738815361378,8.55737817,200.94,200.86,8.55737817]
[1738815362179,4.9771,200.91,200.86,8.55737817]
[1738815362583,5.01079354,200.91,200.86,8.59055199]
[1738815362980,0.03349354,200.91,200.9,8.55737817]
[1738815363277,8.55737817,201.02,200.9,8.55737817]
[1738815363474,190.0,201.11,200.96,8.55737817]
[1738815363475,8.55737817,201.04,200.96,8.55737817]
[1738815363683,4.9741,201.04,200.98,13.53267817]
[1738815363884,4.9741,201.04,200.98,8.55737817]
[1738815364185,13.53147817,201.04,200.98,8.55737817]
[1738815364379,5.00427155,201.03,200.99,0.03401885]
[1738815365882,0.03017155,201.03,200.99,0.03401885]
[1738815366879,0.03017155,201.03,201.0,8.55737817]
[1738815367078,0.03017155,201.03,201.0,10.10327817]
[1738815367587,0.03017155,201.03,201.01,4.9745]
[1738815367892,8.55737817,201.08,201.0,10.10327817]
[1738815368189,8.55737817,201.08,201.02,13.53157817]
[1738815368888,8.55737817,201.08,201.02,4.9742]
[1738815369083,13.53027817,201.08,201.02,4.9742]
[1738815369890,13.53027817,201.08,201.01,2.9747]
[1738815371291,8.55737817,201.08,201.01,2.9747]
[1738815371487,4.9733,201.06,201.01,2.9747]
[1738815371788,8.55737817,201.08,201.01,2.9747]
[1738815371989,4.9739,201.04,201.01,2.9747]
[1738815372291,8.55737817,201.06,201.01,2.9747]
[1738815372790,8.55737817,201.06,201.01,1.5204]
[1738815373093,4.9737,201.05,201.01,1.5204]
[1738815373391,8.55737817,201.06,201.01,1.5204]
[1738815373787,13.53077817,201.06,201.01,1.5204]
[1738815375392,8.55737817,201.08,201.02,4.9743]
[1738815375988,8.55737817,201.08,201.03,0.0374806]
[1738815376888,13.53037817,201.08,201.03,0.0374806]
[1738815377286,13.52997817,201.1,201.03,5.0112806]
[1738815377481,13.52997817,201.1,201.04,8.55737817]
[1738815377681,13.52997817,201.1,201.04,8.59258413]
[1738815377886,8.55737817,201.12,201.04,0.03520596]
[1738815378088,1.5246,201.2,201.1,8.55737817]
[1738815378284,1.5246,201.2,201.14,8.55737817]
[1738815378487,8.55737817,201.21,201.14,8.55737817]
[1738815378488,4.9705,201.18,201.14,8.55737817]
[1738815378886,8.55737817,201.21,201.14,8.55737817]
[1738815379083,13.52727817,201.21,201.14,8.55737817]
[1738815379787,4.9699,201.2,201.14,8.55737817]
[1738815380289,4.9701,201.19,201.14,8.55737817]
[1738815380591,4.9701,201.19,201.13,0.03715442]
[1738815381087,4.9697,201.21,201.13,0.03715442]
[1738815381490,190.0,201.24,201.14,13.33764158]
[1738815382496,13.33764158,201.22,201.13,0.03715442]
[1738815382698,4.971,201.16,201.12,3.1595]
[1738815382995,13.33764158,201.19,201.15,0.03381706]
[1738815383191,4.9717,201.13,201.07,3.041]
[1738815383398,13.33764158,201.19,201.13,0.03338453]
[1738815383595,13.33764158,201.19,201.07,3.041]
[1738815383797,4.9705,201.18,201.14,0.0346606]
[1738815383998,13.33764158,201.19,201.14,0.0346606]
[1738815384496,4.9711,201.15,201.14,0.0346606]
[1738815384695,13.33764158,201.16,201.07,3.041]
[1738815384999,13.33764158,201.19,201.12,0.03702616]
[1738815385590,4.9706,201.17,201.12,0.03702616]
[1738815385794,13.33764158,201.22,201.12,0.03702616]
[1738815385996,190.0,201.23,201.12,0.03702616]
[1738815386196,4.9694,201.23,201.16,4.9708]
[1738815386592,4.9694,201.23,201.17,0.03591353]
[1738815386798,13.33764158,201.25,201.17,0.03591353]
[1738815387004,4.9694,201.22,201.17,0.03591353]
[1738815388205,13.33764158,201.25,201.17,0.03591353]
[1738815390807,4.9694,201.22,201.17,0.03591353]
[1738815391210,13.33764158,201.25,201.17,0.03591353]
[1738815392809,4.9697,201.21,201.17,0.03591353]
[1738815393111,13.33764158,201.25,201.17,0.03591353]
[1738815394812,4.9697,201.21,201.17,0.03591353]
[1738815395304,4.9695,201.22,201.17,0.03591353]
[1738815395707,13.33764158,201.25,201.17,0.03591353]
[1738815395910,4.9699,201.2,201.17,0.03591353]
[1738815396110,13.33764158,201.25,201.17,0.03591353]
[1738815396305,13.33764158,201.22,201.17,0.03591353]
[1738815396506,13.33764158,201.22,201.12,1.481]
[1738815396709,13.33764158,201.22,201.17,0.03550327]
[1738815396912,13.33764158,201.19,201.17,0.03550327]
[1738815397210,13.33764158,201.19,201.07,3.041]
[1738815397410,13.33764158,201.16,201.07,3.041]
[1738815397912,4.9715,201.14,201.07,3.041]
[1738815398112,13.33764158,201.16,201.07,3.041]
[1738815398314,0.03184224,201.13,201.08,0.03413]
[1738815400114,0.03184224,201.13,201.08,13.37177158]
[1738815400313,0.03184224,201.13,201.11,4.9721]
[1738815400514,0.03184224,201.13,201.08,13.37177158]
[1738815401214,4.972,201.12,201.08,0.03413]
[1738815401709,0.03184224,201.13,201.08,0.03413]
[1738815402918,4.9722,201.11,201.08,0.03413]
[1738815406928,4.9719,201.12,201.08,0.03413]
[1738815407826,4.9722,201.11,201.08,0.03413]
[1738815409328,0.03184224,201.13,201.08,0.03413]
[1738815409629,4.9725,201.1,201.08,0.03413]
[1738815410932,0.03184224,201.13,201.08,0.03413]
[1738815411232,4.9726,201.09,201.08,0.03413]
[1738815413637,5.00364224,201.13,201.08,0.03413]
[1738815415332,0.03184224,201.13,201.08,0.03413]
[1738815417037,0.03184224,201.13,201.09,4.9725]
[1738815417237,0.03184224,201.13,201.08,0.03413]
[1738815417838,4.9726,201.09,201.08,0.03413]